lending/lending_fUSD_20240830
["ID","MTS","AMOUNT","RATE_DAILY","PERIOD"]
[336704781,1725046113970,-207.13641049,0.00045064,30]
[336704782,1725046113996,-150.0,0.00045076,30]
[336704783,1725046114023,-150.0,0.00045086,30]
[336704784,1725046114049,-462.11321182,0.00045113,30]
[336704785,1725046114077,-207.13641049,0.00045113,30]
[336704786,1725046114104,-462.11321182,0.00045162,30]
[336704787,1725046114131,-207.13641049,0.00045162,30]
[336704788,1725046114157,-2000.0,0.00045176,120]
[336704789,1725046114183,-462.11321182,0.00045211,30]
[336704790,1725046114210,-207.13641049,0.00045211,30]
[336704791,1725046114236,-150.0,0.00045211,30]
[336704792,1725046114263,-150.0,0.00045227,120]
[336704793,1725046114289,-462.11321182,0.0004526,30]
[336704794,1725046114315,-207.13641049,0.0004526,30]
[336704795,1725046114340,-462.11321182,0.00045309,30]
[336704796,1725046114367,-207.13641049,0.00045309,30]
[336704797,1725046114393,-150.0,0.00045345,30]
[336704798,1725046114419,-462.11321182,0.00045357,30]
[336704799,1725046114448,-207.13641049,0.00045357,30]
[336704800,1725046114477,-150.0,0.00045364,120]
[336704801,1725046114504,-462.11321182,0.00045406,30]
[336704802,1725046114530,-207.13641049,0.00045406,30]
[336704803,1725046114556,-462.11321182,0.00045455,30]
[336704804,1725046114583,-207.13641049,0.00045455,30]
[336704805,1725046114608,-150.0,0.00045459,30]
[336704806,1725046114636,-2185.65,0.00045479,120]
[336704807,1725046114663,-150.0,0.0004548,30]
[336704808,1725046114692,-462.11321182,0.00045504,30]
[336704809,1725046114719,-207.13641049,0.00045504,30]
[336704810,1725046115045,-150.0,0.00045534,30]
[336704811,1725046115073,-150.0,0.00045534,30]
[336704812,1725046115101,-462.11321182,0.00045553,30]
[336704813,1725046115128,-207.13641049,0.00045553,30]
[336704814,1725046115154,-462.11321182,0.00045602,30]
[336704815,1725046115179,-207.13641049,0.00045602,30]
[336704816,1725046115205,-150.0,0.00045614,30]
[336704817,1725046115230,-462.11321182,0.00045651,30]
[336704818,1725046115255,-207.13641049,0.00045651,30]
[336704819,1725046115280,-150.0,0.00045677,120]
[336704820,1725046115305,-462.11321182,0.000457,30]
[336704821,1725046115330,-207.13641049,0.000457,30]
[336704822,1725046115355,-175.34706485,0.000457,30]
[336704823,1725046115380,-500.0,0.000457,30]
[336704824,1725046115405,-151.0,0.00045726,120]
[336704825,1725046115431,-462.11321182,0.00045749,30]
[336704826,1725046115456,-207.13641049,0.00045749,30]
[336704827,1725046115480,-150.0,0.00045749,30]
[336704828,1725046115504,-462.11321182,0.00045798,30]
[336704829,1725046115528,-207.13641049,0.00045798,30]
[336704830,1725046115552,-150.0,0.00045832,30]
[336704831,1725046115577,-462.11321182,0.00045847,30]
[336704832,1725046115601,-207.13641049,0.00045847,30]
[336704833,1725046115625,-150.0,0.00045883,30]
[336704834,1725046115650,-462.11321182,0.00045896,30]
[336704835,1725046115677,-207.13641049,0.00045896,30]
[336704836,1725046115702,-462.11321182,0.00045945,30]
[336704837,1725046115729,-207.13641049,0.00045945,30]
[336704838,1725046115755,-462.11321182,0.00045994,30]
[336704839,1725046115781,-207.13641049,0.00045994,30]
[336704840,1725046115806,-1000.0,0.00045999,120]
[336704841,1725046115834,-50000.0,0.00046,46]
[336704842,1725046115865,-50000.0,0.00046,36]
[336704843,1725046115890,-170.1,0.00046,96]
[336704844,1725046115915,-800.0,0.00046,120]
[336704845,1725046115940,-1000000.0,0.00046,120]
[336704846,1725046115965,-3352.13851127,0.00046,120]
[336704847,1725046115991,-1000.0,0.00046,30]
[336704848,1725046116016,-2961.85412257,0.00046,30]
[336704849,1725046116041,-20398.98519567,0.00046,60]
[336704850,1725046116066,-2000.0,0.00046,120]
[336704851,1725046116091,-2000.0,0.00046,120]
[336704852,1725046116117,-238.59212754,0.00046,90]
[336704853,1725046116143,-762.96693048,0.00046,120]
[336704854,1725046116168,-1587.56732427,0.00046,120]
[336704855,1725046116192,-150.0,0.00046018,30]
[336704856,1725046116216,-150.0,0.00046018,30]
[336704857,1725046116240,-150.0,0.00046018,30]
[336704858,1725046116265,-150.0,0.00046018,30]
[336704859,1725046116290,-150.0,0.00046018,30]
[336704860,1725046116315,-2185.65,0.00046027,120]
[336704861,1725046116341,-150.0,0.00046029,120]
[336704862,1725046116377,-462.11321182,0.00046042,30]
[336704863,1725046116403,-207.13641049,0.00046042,30]
[336704864,1725046116428,-2000.0,0.00046089,120]
[336704865,1725046116454,-462.11321182,0.00046091,30]
[336704866,1725046116478,-207.13641049,0.00046091,30]
[336704867,1725046116502,-462.11321182,0.0004614,30]
[336704868,1725046116526,-207.13641049,0.0004614,30]
[336704869,1725046116551,-150.0,0.00046153,30]
[336704870,1725046116576,-462.11321182,0.00046189,30]
[336704871,1725046116601,-207.13641049,0.00046189,30]
[336704872,1725046116628,-335.74353097,0.00046195,30]
[336704873,1725046116653,-150.0,0.00046204,30]
[336704874,1725046116681,-462.11321182,0.00046238,30]
[336704875,1725046116708,-207.13641049,0.00046238,30]
[336704876,1725046116734,-462.11321182,0.00046287,30]
[336704877,1725046116761,-207.13641049,0.00046287,30]
[336704878,1725046116786,-150.0,0.00046287,30]
[336704879,1725046116813,-462.11321182,0.00046336,30]
[336704880,1725046116838,-207.13641049,0.00046336,30]
[336704881,1725046116864,-10465.0,0.00046357,113]
[336704882,1725046116890,-462.11321182,0.00046385,30]
[336704883,1725046116915,-207.13641049,0.00046385,30]
[336704884,1725046116941,-150.0,0.00046422,30]
[336704885,1725046116967,-462.11321182,0.00046434,30]
[336704886,1725046116992,-207.13641049,0.00046434,30]
[336704887,1725046117016,-462.11321182,0.00046483,30]
[336704888,1725046117041,-207.13641049,0.00046483,30]
[336704889,1725046117067,-150.0,0.00046502,30]
[336704890,1725046117091,-150.0,0.00046502,30]
[336704891,1725046117116,-209.0,0.0004652,30]
[336704892,1725046117142,-212.0,0.0004652,30]
[336704893,1725046117166,-200.0,0.0004652,30]
[336704894,1725046117191,-462.11321182,0.00046532,30]
[336704895,1725046117217,-207.13641049,0.00046532,30]
[336704896,1725046117242,-10411.0,0.0004655,90]
[336704897,1725046117267,-150.0,0.00046556,30]
[336704898,1725046117292,-2185.65,0.00046575,120]
[336704899,1725046117316,-150.0,0.00046577,30]
[336704900,1725046117341,-462.11321182,0.00046581,30]
[336704901,1725046117365,-207.13641049,0.00046581,30]
[336704902,1725046117390,-150.0,0.00046615,120]
[336704903,1725046117415,-462.11321182,0.0004663,30]
[336704904,1725046117443,-207.13641049,0.0004663,30]
[336704905,1725046117467,-462.11321182,0.00046679,30]
[336704906,1725046117492,-207.13641049,0.00046679,30]
[336704907,1725046117517,-150.0,0.00046691,30]
[336704908,1725046117542,-462.11321182,0.00046727,30]
[336704909,1725046117568,-207.13641049,0.00046727,30]
[336704910,1725046117595,-462.11321182,0.00046776,30]
[336704911,1725046117622,-207.13641049,0.00046776,30]
[336704912,1725046117648,-500.0,0.00046796,30]
[336704913,1725046117897,-462.11321182,0.00046825,30]
[336704914,1725046117923,-207.13641049,0.00046825,30]
[336704915,1725046117950,-150.0,0.00046825,30]
[336704916,1725046117975,-151.0,0.00046849,120]
[336704917,1725046118001,-462.11321182,0.00046874,30]
[336704918,1725046118029,-207.13641049,0.00046874,30]
[336704919,1725046118057,-284.95,0.00046879,120]
[336704920,1725046118082,-6333.50480778,0.0004688,30]
[336704921,1725046118107,-462.11321182,0.00046923,30]
[336704922,1725046118133,-207.13641049,0.00046923,30]
[336704923,1725046118158,-150.0,0.0004695,30]
[336704924,1725046118184,-150.0,0.0004696,30]
[336704925,1725046118210,-462.11321182,0.00046972,30]
[336704926,1725046118235,-207.13641049,0.00046972,30]
[336704927,1725046118259,-150.0,0.00046987,30]
[336704928,1725046118283,-1000.0,0.00046999,120]
[336704929,1725046118313,-50000.0,0.00047,47]
[336704930,1725046118340,-1000000.0,0.00047,120]
[336704931,1725046118365,-805.77805165,0.00047,120]
[336704932,1725046118389,-3632.99327744,0.00047,120]
[336704933,1725046118415,-2000.29609688,0.00047,120]
[336704934,1725046118444,-10000.0,0.00047,120]
[336704935,1725046118470,-10000.0,0.00047,120]
[336704936,1725046118496,-10000.0,0.00047,120]
[336704937,1725046118521,-10000.0,0.00047,120]
[336704938,1725046118547,-10000.0,0.00047,120]
[336704939,1725046118574,-10000.0,0.00047,120]
[336704940,1725046118600,-3416.40529529,0.00047,120]
[336704941,1725046118625,-1780.0,0.00047,120]
[336704942,1725046118648,-6000.0,0.00047,120]
[336704943,1725046118676,-20000.0,0.00047,75]
[336704944,1725046118700,-2000.0,0.00047002,120]
[336704945,1725046118729,-462.11321182,0.00047021,30]
[336704946,1725046118755,-207.13641049,0.00047021,30]
[336704947,1725046118781,-150.0,0.00047053,120]
[336704948,1725046118807,-462.11321182,0.0004707,30]
[336704949,1725046118832,-207.13641049,0.0004707,30]
[336704950,1725046118859,-150.0,0.00047094,30]
[336704951,1725046118883,-462.11321182,0.00047119,30]
[336704952,1725046118909,-207.13641049,0.00047119,30]
[336704953,1725046118936,-2185.65,0.00047123,120]
[336704954,1725046118962,-462.11321182,0.00047168,30]
[336704955,1725046118986,-207.13641049,0.00047168,30]
[336704956,1725046119011,-50000.0,0.00047198,120]
[336704957,1725046119035,-462.11321182,0.00047217,30]
[336704958,1725046119060,-207.13641049,0.00047217,30]
[336704959,1725046119085,-150.0,0.00047229,30]
[336704960,1725046119109,-462.11321182,0.00047266,30]
[336704961,1725046119136,-207.13641049,0.00047266,30]
[336704962,1725046119161,-462.11321182,0.00047315,30]
[336704963,1725046119187,-207.13641049,0.00047315,30]
[336704964,1725046119212,-150.0,0.00047322,30]
[336704965,1725046119237,-150.0,0.00047354,120]
[336704966,1725046119262,-150.0,0.00047364,30]
[336704967,1725046119288,-462.11321182,0.00047364,30]
[336704968,1725046119313,-207.13641049,0.00047364,30]
[336704969,1725046119338,-462.11321182,0.00047412,30]
[336704970,1725046119367,-207.13641049,0.00047412,30]
[336704971,1725046119392,-462.11321182,0.00047461,30]
[336704972,1725046119417,-207.13641049,0.00047461,30]
[336704973,1725046119446,-150.0,0.00047471,30]
[336704974,1725046119472,-150.0,0.00047471,30]
[336704975,1725046119498,-150.0,0.00047498,30]
[336704976,1725046119524,-10000.00000099,0.000475,90]
[336704977,1725046119550,-462.11321182,0.0004751,30]
[336704978,1725046119574,-207.13641049,0.0004751,30]
[336704979,1725046119599,-462.11321182,0.00047559,30]
[336704980,1725046119630,-207.13641049,0.00047559,30]
[336704981,1725046119655,-462.11321182,0.00047608,30]
[336704982,1725046119680,-207.13641049,0.00047608,30]
[336704983,1725046119705,-200.23956114,0.00047617,120]
[336704984,1725046119733,-150.0,0.00047633,30]
[336704985,1725046119758,-462.11321182,0.00047657,30]
[336704986,1725046119783,-207.13641049,0.00047657,30]
[336704987,1725046119808,-2185.65,0.00047671,120]
[336704988,1725046119833,-150.0,0.00047695,30]
[336704989,1725046119859,-265461.34879222,0.000477,30]
[336704990,1725046119885,-541083.24813301,0.000477,30]
[336704991,1725046119910,-462.11321182,0.00047706,30]
[336704992,1725046119936,-207.13641049,0.00047706,30]
[336704993,1725046119962,-462.11321182,0.00047755,30]
[336704994,1725046119987,-207.13641049,0.00047755,30]
[336704995,1725046120012,-150.0,0.00047767,30]
[336704996,1725046120039,-150.0,0.00047788,120]
[336704997,1725046120063,-150.0,0.00047797,120]
[336704998,1725046120088,-2256.61694428,0.000478,90]
[336704999,1725046120115,-1669.82738848,0.000478,120]
[336705000,1725046120142,-462.11321182,0.00047804,30]
[336705001,1725046120168,-207.13641049,0.00047804,30]
[336705002,1725046120193,-462.11321182,0.00047853,30]
[336705003,1725046120220,-207.13641049,0.00047853,30]
[336705004,1725046120244,-552.28,0.00047889,30]
[336705005,1725046120267,-500.0,0.00047889,40]
[336705006,1725046120291,-500.0,0.00047889,60]
[336705007,1725046120314,-701.33172365,0.0004789,30]
[336705008,1725046120338,-2659.0,0.0004789,72]
[336705009,1725046120362,-500.0,0.00047892,30]
[336705010,1725046120388,-462.11321182,0.00047902,30]
[336705011,1725046120412,-207.13641049,0.00047902,30]
[336705012,1725046120440,-150.0,0.00047902,30]
[336705013,1725046120465,-2000.0,0.00047915,120]
[336705014,1725046120491,-462.11321182,0.00047951,30]
[336705015,1725046120518,-207.13641049,0.00047951,30]
[336705016,1725046120764,-150.0,0.00047956,30]
[336705017,1725046120790,-150.0,0.00047959,120]
[336705018,1725046120815,-151.0,0.00047973,120]
[336705019,1725046120841,-1000.0,0.00047999,120]
[336705020,1725046120871,-50000.0,0.00048,48]
[336705021,1725046120896,-462.11321182,0.00048,30]
[336705022,1725046120923,-207.13641049,0.00048,30]
[336705023,1725046120950,-400.0,0.00048,120]
[336705024,1725046120975,-405.297572,0.00048,90]
[336705025,1725046120999,-22000.0,0.00048,30]
[336705026,1725046121023,-128677.00320969,0.00048,60]
[336705027,1725046121048,-1000000.0,0.00048,120]
[336705028,1725046121072,-2661.87610547,0.00048,120]
[336705029,1725046121096,-2000.0,0.00048,120]
[336705030,1725046121122,-160.0,0.00048,90]
[336705031,1725046121147,-403134.94483692,0.00048,30]
[336705032,1725046121171,-2000.0,0.00048,120]
[336705033,1725046121196,-762.96693049,0.00048,120]
[336705034,1725046121221,-1587.56732426,0.00048,120]
[336705035,1725046121247,-150.0,0.00048036,30]
[336705036,1725046121273,-462.11321182,0.00048049,30]
[336705037,1725046121299,-207.13641049,0.00048049,30]
[336705038,1725046121324,-150.0,0.00048067,30]
[336705039,1725046121348,-462.11321182,0.00048097,30]
[336705040,1725046121374,-207.13641049,0.00048097,30]
[336705041,1725046121398,-4094.0,0.000481,120]
[336705042,1725046121426,-462.11321182,0.00048146,30]
[336705043,1725046121452,-207.13641049,0.00048146,30]
[336705044,1725046121477,-150.0,0.00048171,30]
[336705045,1725046121502,-462.11321182,0.00048195,30]
[336705046,1725046121529,-207.13641049,0.00048195,30]
[336705047,1725046121554,-2185.65,0.00048219,120]
[336705048,1725046121579,-1000.0,0.00048234,120]
[336705049,1725046121604,-462.11321182,0.00048244,30]
[336705050,1725046121632,-207.13641049,0.00048244,30]
[336705051,1725046121658,-5000.0,0.00048288,90]
[336705052,1725046121687,-462.11321182,0.00048293,30]
[336705053,1725046121714,-207.13641049,0.00048293,30]
[336705054,1725046121741,-150.0,0.00048305,30]
[336705055,1725046121768,-621.0,0.0004833,120]
[336705056,1725046121796,-150.0,0.00048331,120]
[336705057,1725046121823,-462.11321182,0.00048342,30]
[336705058,1725046121850,-207.13641049,0.00048342,30]
[336705059,1725046121879,-462.11321182,0.00048391,30]
[336705060,1725046121906,-207.13641049,0.00048391,30]
[336705061,1725046121932,-155.552637,0.000484,64]
[336705062,1725046121958,-101841.35288687,0.0004842,120]
[336705063,1725046149723,-1000.0,0.00045,120]
[336705064,1725046149752,-1132753.90711313,0.0004842,120]
[336705065,1725046149780,-150.0,0.0004847,120]
[336705066,1725046149806,-2185.65,0.00048767,120]
[336705067,1725046149830,-356.96828478,0.000488,120]
[336705068,1725046149855,-2000.0,0.00048828,120]
[336705069,1725046149880,-1136.09096296,0.000489,120]
[336705070,1725046149905,-542.08051301,0.000489,120]
[336705071,1725046149931,-1000.0,0.00048999,120]
[336705072,1725046149960,-50000.0,0.00049,49]
[336705073,1725046149985,-2886.83149936,0.00049,120]
[336705074,1725046150012,-1000000.0,0.00049,120]
[336705075,1725046150037,-497.88712236,0.00049,120]
[336705076,1725046150062,-6100.0,0.00049,120]
[336705077,1725046150087,-151.0,0.00049096,120]
[336705078,1725046150114,-150.0,0.00049223,120]
[336705079,1725046150141,-2185.65,0.00049315,120]
[336705080,1725046150167,-3000.0,0.00049315,120]
[336705081,1725046150193,-1988.73399784,0.00049315,120]
[336705082,1725046150219,-259203.7,0.00049315,90]
[336705083,1725046150246,-15000.0,0.0004949,120]
[336705084,1725046150271,-15000.0,0.0004949,120]
[336705085,1725046150296,-15000.0,0.0004949,120]
[336705086,1725046150322,-15000.0,0.0004949,120]
[336705087,1725046150348,-15000.0,0.0004949,120]
[336705088,1725046150374,-15000.0,0.0004949,120]
[336705089,1725046150399,-15000.0,0.0004949,120]
[336705090,1725046150424,-15000.0,0.0004949,120]
[336705091,1725046150454,-764.66139486,0.000495,120]
[336705092,1725046150480,-456.01262,0.00049563,120]
[336705093,1725046150506,-150.0,0.00049737,120]
[336705094,1725046150531,-2000.0,0.0004974,120]
[336705095,1725046150558,-11211.0,0.00049771,117]
[336705096,1725046150584,-2185.65,0.00049863,120]
[336705097,1725046150609,-73195.61,0.0004987,120]
[336705098,1725046150635,-2662.0,0.0004989,76]
[336705099,1725046150660,-150.0,0.00049969,120]
[336705100,1725046150687,-151.0,0.00049973,120]
[336705101,1725046150711,-1000.0,0.00049999,120]
[336705102,1725046150743,-50000.0,0.0005,50]
[336705103,1725046150770,-150.0,0.0005,120]
[336705104,1725046150794,-700.0,0.0005,120]
[336705105,1725046150820,-1514.56125079,0.0005,60]
[336705106,1725046150845,-3027.40146012,0.0005,60]
[336705107,1725046150873,-3291.10476274,0.0005,120]
[336705108,1725046150899,-1218.94946059,0.0005,120]
[336705109,1725046150925,-980.585407,0.0005,120]
[336705110,1725046150952,-2000.0,0.0005,120]
[336705111,1725046150980,-10017.96522859,0.0005,120]
[336705112,1725046151006,-200.0,0.0005,120]
[336705113,1725046151033,-175.61261919,0.0005,120]
[336705114,1725046151060,-500.0,0.00050035,90]
[336705115,1725046151086,-284.95,0.0005004,120]
[336705116,1725046151112,-150.0,0.00050109,120]
[336705117,1725046151137,-621.38696517,0.00050136,120]
[336705118,1725046151163,-151.0,0.00050219,120]
[336705119,1725046151188,-150.0,0.00050314,120]
[336705120,1725046151212,-2185.65,0.0005041,120]
[336705121,1725046151237,-500.0,0.00050583,90]
[336705122,1725046151262,-2000.0,0.00050653,120]
[336705123,1725046151287,-150.0,0.0005074,120]
[336705124,1725046151313,-2185.65,0.00050958,120]
[336705125,1725046151338,-6058.59205075,0.00051,120]
[336705126,1725046151364,-166654.45526297,0.000512,60]
[336705127,1725046151391,-190.13739733,0.00051235,120]
[336705128,1725046151416,-151.0,0.00051342,120]
[336705129,1725046151442,-2185.65,0.00051506,120]
[336705130,1725046151467,-887.624162,0.00051566,120]
[336705131,1725046151493,-1000.0,0.00051999,120]
[336705132,1725046151518,-1087.06634789,0.00052,120]
[336705133,1725046151545,-2000.0,0.00052,120]
[336705134,1725046151571,-2185.65,0.00052054,120]
[336705135,1725046151599,-151.0,0.00052466,120]
[336705136,1725046151625,-2185.65,0.00052602,120]
[336705137,1725046151660,-2668.0,0.0005289,80]
[336705138,1725046151690,-200.0,0.00053,120]
[336705139,1725046151717,-2185.65,0.0005315,120]
[336705140,1725046151744,-11960.0,0.00053186,117]
[336705141,1725046151771,-284.95,0.00053201,120]
[336705142,1725046151798,-76798.71059462,0.000534,120]
[336705143,1725046151824,-1353.02707687,0.00053471,120]
[336705144,1725046151851,-1353.02707687,0.00053481,120]
[336705145,1725046151877,-1353.02707687,0.00053493,120]
[336705146,1725046152175,-1353.02707687,0.00053559,120]
[336705147,1725046152200,-1353.02707687,0.00053587,120]
[336705148,1725046152227,-151.0,0.00053589,120]
[336705149,1725046152253,-2185.65,0.00053698,120]
[336705150,1725046152279,-1000.0,0.00053879,120]
[336705151,1725046152304,-677.0,0.0005388,90]
[336705152,1725046152329,-1000.0,0.00053999,120]
[336705153,1725046152355,-600.0,0.00054,120]
[336705154,1725046152381,-1672.3752,0.00054,90]
[336705155,1725046152409,-5000.0,0.00054,120]
[336705156,1725046152438,-2139.27246615,0.00054,120]
[336705157,1725046152465,-1000.0,0.00054,120]
[336705158,1725046152491,-2207.91152889,0.00054,120]
[336705159,1725046152519,-17810.97690302,0.00054,120]
[336705160,1725046152545,-1000.0,0.00054,60]
[336705161,1725046152572,-2185.65,0.00054246,120]
[336705162,1725046152648,2912401.64203954,0.00054521,40]
[336705163,1725046157136,-155.96806569,0.00049487,90]
[336705164,1725046157165,-500.0,0.00051131,90]
[336705165,1725046157516,-502.24964376,0.00051679,90]
[336705166,1725046157543,-217.14469222,0.0005388,90]
[336705167,1725046157591,1273283.125374,0.00054521,40]
[336705174,1725046214220,508.5222,0.00010918,2]
[336705177,1725046231713,-320.02,0.00010968,2]
[336705178,1725046231723,-13459.0,0.00010968,2]
[336705179,1725046231733,-310.31,0.0001097,2]
[336705180,1725046231742,-55.10076,0.00010971,2]
[336705182,1725046231755,-94.89924,0.00010971,2]
[336705185,1725046231765,-300.0,0.00010971,2]
[336705186,1725046231776,-500.0,0.00010972,2]
[336705187,1725046231787,-93.91838048,0.00010972,2]
[336705188,1725046231806,-406.08161952,0.00010972,2]
[336705189,1725046231815,-277.24900695,0.00010972,2]
[336705190,1725046231825,-150.82742913,0.00010972,2]
[336705191,1725046231834,-1591.411053,0.00010973,2]
[336705192,1725046231846,-11895.4326,0.00010973,2]
[336705193,1725046231857,-871.5527439,0.00010973,2]
[336705194,1725046231869,-2737.33492461,0.00010973,2]
[336705195,1725046231880,-1368.4452503,0.00010973,2]
[336705196,1725046231891,-3300.0,0.00010973,2]
[336705197,1725046231947,-3498.10131452,0.00010973,2]
[336705208,1725046238048,243.26961759,0.00010949,2]
[336705209,1725046238141,-2978.38329445,0.00010972,2]
[336705242,1725046242800,-623.0,0.00010968,2]
[336705243,1725046242810,-1144.0,0.00010968,2]
[336705244,1725046242820,-4536.93665368,0.00010972,2]
[336705251,1725046244133,-2097.99879357,0.00010972,2]
[336705254,1725046393448,153.65,0.00010327,2]
[336705255,1725046415119,166.2,0.00010378,2]
[336705256,1725046418897,500.0,0.00010884,2]
[336705257,1725046420877,586.1,0.00010418,2]
[336705258,1725046587620,250.0,0.00010469,2]
[336705259,1725046620021,3357.88,0.00010489,2]
[336705260,1725046626215,262.44,8.591e-05,2]
[336705261,1725046626431,262.44,0.00010855,2]
[336705262,1725046635309,222.93,0.00010571,2]
[336705264,1725046976737,531.12,0.00010401,2]
[336705265,1725047030389,500.0,0.00010318,2]
[336705266,1725047116104,150.0,0.00010959,2]
[336705267,1725047122855,236.19,8.57e-05,2]
[336705268,1725047123090,236.19,0.00010834,2]
[336705269,1725047141117,222.96,0.00010488,2]
[336705270,1725047181538,250.0,0.00010488,2]
[336705272,1725047431842,-150.0,0.00010971,2]
[336705273,1725047431852,-263.0,0.00010971,2]
[336705274,1725047431862,-910.01385731,0.00010973,2]
[336705275,1725047431894,-9414.19131797,0.00010973,2]
[336705276,1725047431906,-604.66425726,0.00010973,2]
[336705277,1725047431950,-572.13348406,0.00010973,2]
[336705278,1725047432004,-414.26788852,0.00010973,2]
[336705279,1725047432060,-650.14882909,0.00010973,2]
[336705285,1725047437915,-3022.99999999,0.00010973,2]
[336705286,1725047437968,-1836.5905978,0.00010973,2]
[336705287,1725047437984,-23346.9318866,0.00010973,2]
[336705288,1725047438074,-403.05044119,0.00010973,2]
[336705289,1725047438086,-2673.28413778,0.00010973,2]
[336705290,1725047438100,-476.81295156,0.00010973,2]
[336705291,1725047438232,-437.70943335,0.00010973,2]
[336705448,1725047439855,-8807.26850963,0.00010973,2]
[336705450,1725047439868,-262.41686423,0.00010973,2]
[336705461,1725047439962,-20399.81834467,0.00010973,2]
[336705463,1725047439974,-59609.51136024,0.00010973,2]
[336705468,1725047440017,-530.57019178,0.00010973,2]
[336705490,1725047440229,-1024.96256781,0.00010973,2]
[336705834,1725047443841,-500.0,0.00010972,2]
[336706020,1725047446154,-590.0,0.00010972,2]
[336706025,1725047456930,500.0,0.000102,3]
[336706026,1725047459070,1100.0,0.000103,3]
[336706027,1725047459583,575.1,0.00010721,2]
[336706028,1725047461208,1700.0,0.000104,3]
[336706029,1725047463319,2300.0,0.000105,3]
[336706030,1725047465414,2900.0,0.000106,3]
[336706031,1725047467517,500.0,0.000107,3]
[336706032,1725047469609,500.0,0.000108,3]
[336706033,1725047471749,500.0,0.000109,3]
[336706034,1725047474578,550.0,0.0001,2]
[336706035,1725047511021,1050.0,0.0001,2]
[336706036,1725047623870,500.0,9.92e-05,2]
[336706037,1725047695811,250.0,0.00010883,2]
[336706038,1725047727666,221.65,0.00010929,2]
[336706039,1725047736757,212.57,8.975e-05,2]
[336706040,1725047857799,201.32,0.00010959,2]
[336706042,1725047962561,539.92,0.0001095,2]
[336706043,1725048220169,500.0,0.00010862,2]
[336706044,1725048235737,201.94,9.006e-05,2]
[336706045,1725048318379,250.0,0.00010785,2]
[336706046,1725048395060,222.68,0.00010851,2]
[336706047,1725048452922,568.06,0.00010626,2]
[336706048,1725048563216,-1144.0,0.00010962,2]
[336706049,1725048563243,-3143.80589158,0.00010962,2]
[336706050,1725048563876,-4287.80589158,0.00010962,2]
[336706051,1725048563920,-298.87739786,0.00010962,2]
[336706052,1725048588545,-4465.2956752,0.00010962,2]
[336706053,1725048588606,-1263.21514378,0.00010962,2]
[336706054,1725048588633,-319.07862628,0.00010962,2]
[336706059,1725048631985,-150.0,0.00010969,2]
[336706060,1725048631995,-300.0,0.00010969,2]
[336706061,1725048632004,-223.26959684,0.0001097,2]
[336706062,1725048632013,-664.0,0.0001097,2]
[336706063,1725048632023,-1000.0,0.0001097,2]
[336706064,1725048632032,-284.42122193,0.0001097,2]
[336706065,1725048632091,-530.14499983,0.0001097,2]
[336706066,1725048632147,-185.43377824,0.0001097,2]
[336706067,1725048632158,-367.56622176,0.0001097,2]
[336706068,1725048632172,-632.43377824,0.0001097,2]
[336706069,1725048632184,-504.0,0.0001097,2]
[336706070,1725048632195,-5852.0,0.00010972,2]
[336706071,1725048632206,-289.0,0.00010972,2]
[336706072,1725048632215,-1180.7495485,0.00010972,2]
[336706073,1725048632231,-5376.69263244,0.00010972,2]
[336706074,1725048632244,-380.03886704,0.00010972,2]
[336706075,1725048632256,-1316.83678172,0.00010972,2]
[336706126,1725048633112,4006.94066524,0.00010949,2]
[336706127,1725048633480,159.35284091,0.00010949,2]
[336706128,1725048638278,-5204.6821703,0.00010972,2]